bitfinex-derivatives/quotes_SOLF0:USTF0_20260310
["timestamp","ask_amount","ask_price","bid_price","bid_amount"]
[1773159239956,8.89009379,87.87,87.791,20.31329794]
[1773159240454,8.89009379,87.85,87.751,20.31331367]
[1773159240659,8.89009379,87.83,87.751,20.31331367]
[1773159241359,8.89009379,87.83,87.772,20.3133137]
[1773159242555,10.245,87.82,87.775,10.25]
[1773159243353,10.246,87.812,87.772,20.3133137]
[1773159244257,10.245,87.82,87.773,20.35896152]
[1773159244461,8.26038157,87.849,87.773,20.35896152]
[1773159244662,17.15047536,87.85,87.773,20.35896152]
[1773159244859,8.89009379,87.85,87.773,20.35896152]
[1773159245259,10.244,87.828,87.782,10.25]
[1773159245457,10.244,87.828,87.773,20.35896152]
[1773159245458,8.89009379,87.85,87.783,20.35896108]
[1773159246465,8.96073619,87.857,87.788,20.35664729]
[1773159246660,8.96073619,87.869,87.791,20.35664688]
[1773159246860,8.96073619,87.885,87.791,20.35664688]
[1773159247074,8.96073619,87.889,87.826,20.35664688]
[1773159247364,8.96073619,87.888,87.826,20.35664688]
[1773159247567,8.96073619,87.887,87.829,0.07251858]
[1773159247761,8.96073619,87.886,87.829,0.07251858]
[1773159247966,8.96073619,87.885,87.826,20.35664688]
[1773159248166,8.96073619,87.884,87.826,20.35664688]
[1773159248366,10.24,87.865,87.826,20.35664688]
[1773159249265,8.96073619,87.879,87.826,20.35664688]
[1773159249570,8.89009379,87.87,87.808,20.36501293]
[1773159249766,8.96073619,87.869,87.808,20.36501293]
[1773159250070,8.96073619,87.868,87.808,20.36501293]
[1773159250268,8.96073619,87.867,87.808,20.36501293]
[1773159250470,8.96073619,87.869,87.83,0.07266987]
[1773159250669,8.96073619,87.868,87.83,0.07266987]
[1773159250869,8.96073619,87.867,87.83,0.07266987]
[1773159251071,8.96073619,87.869,87.83,0.07266987]
[1773159251273,8.96073619,87.869,87.83,20.19586226]
[1773159251468,8.96073619,87.881,87.83,20.19586226]
[1773159251663,8.96073619,87.88,87.83,20.19586226]
[1773159251868,10.24,87.868,87.83,20.19586226]
[1773159252166,10.24,87.868,87.83,20.12319239]
[1773159252372,16.06272208,87.901,87.83,20.12319239]
[1773159252373,8.96073619,87.888,87.83,20.12319239]
[1773159252668,10.238,87.886,87.841,20.11894907]
[1773159252970,10.238,87.886,87.84,0.07233303]
[1773159252971,8.89009379,87.89,87.84,0.07233303]
[1773159253170,8.89009379,87.89,87.821,20.11895095]
[1773159255171,8.89009379,87.89,87.824,20.1107776]
[1773159255172,10.24,87.869,87.824,20.1107776]
[1773159256473,10.24,87.862,87.824,20.1107776]
[1773159257468,10.239,87.87,87.824,20.1107776]
[1773159258263,10.239,87.87,87.838,0.07199622]
[1773159259474,8.89009379,87.89,87.838,0.07199622]
[1773159259475,10.239,87.878,87.838,0.07199622]
[1773159259777,10.239,87.878,87.838,20.14480152]
[1773159262774,10.239,87.872,87.838,20.14480152]
[1773159265473,8.89009379,87.89,87.838,20.14480152]
[1773159265474,10.238,87.879,87.838,20.14480152]
[1773159265875,8.89009379,87.87,87.801,20.05794786]
[1773159266182,8.89009379,87.87,87.803,20.09394597]
[1773159267282,10.242,87.845,87.806,10.247]
[1773159267581,10.242,87.845,87.807,20.09394805]
[1773159267781,8.89009379,87.87,87.807,20.09394805]
[1773159267981,8.96073619,87.882,87.817,20.12095463]
[1773159268279,0.07239895,87.835,87.817,20.12095463]
[1773159268478,10.241,87.858,87.817,20.12095463]
[1773159269774,10.242,87.852,87.817,20.12095463]
[1773159272784,10.242,87.852,87.826,0.07192379]
[1773159278386,8.96073619,87.882,87.826,20.18358734]
[1773159278686,8.96073619,87.9,87.826,20.18358734]
[1773159278885,8.96073619,87.899,87.826,20.11166355]
[1773159279190,8.96073619,87.898,87.826,20.11166355]
[1773159279385,8.96073619,87.897,87.826,20.11166355]
[1773159279591,8.96073619,87.9,87.826,20.11166355]
[1773159279790,8.96073619,87.899,87.826,20.11166355]
[1773159280089,8.96073619,87.898,87.826,20.11166355]
[1773159280290,8.96073619,87.897,87.826,20.11166355]
[1773159280590,10.239,87.871,87.828,20.11474872]
[1773159280984,10.24,87.865,87.828,20.11474872]
[1773159282181,20.475,87.889,87.828,20.11474872]
[1773159282384,8.89009379,87.87,87.789,20.11463265]
[1773159283384,10.241,87.858,87.813,20.114634]
[1773159283591,3.31711243,87.85,87.798,20.114634]
[1773159283787,3.31711243,87.84,87.798,20.114634]
[1773159283986,3.31711243,87.83,87.798,20.114634]
[1773159284186,3.31711243,87.82,87.771,20.16055694]
[1773159284389,20.48,87.869,87.771,20.16055694]
[1773159284591,3.31711243,87.82,87.771,20.16055694]
[1773159285493,20.48,87.869,87.78,20.16055796]
[1773159285494,10.244,87.828,87.78,20.16055796]
[1773159286493,10.244,87.828,87.785,20.21324372]
[1773159287991,3.31711243,87.82,87.785,20.21324372]
[1773159288495,3.31711243,87.82,87.798,0.07322766]
[1773159288696,10.245,87.822,87.798,0.07322766]
[1773159292993,3.31711243,87.82,87.798,0.07322766]
[1773159293606,10.245,87.819,87.798,0.07322766]
[1773159294003,10.245,87.819,87.752,21.12378351]
[1773159294004,3.31711243,87.81,87.764,20.22051918]
[1773159295405,0.07332624,87.796,87.767,20.22051973]
[1773159296210,3.31711243,87.83,87.778,20.18216207]
[1773159296506,3.31711243,87.84,87.791,20.18216207]
[1773159297012,3.31711243,87.84,87.795,10.248]
[1773159297202,3.31711243,87.84,87.796,20.18216261]
[1773159297709,10.243,87.836,87.809,0.0725993]
[1773159298011,3.31711243,87.84,87.809,0.0725993]
[1773159298412,3.31711243,87.84,87.81,20.19845329]
[1773159298612,11.39,87.931,87.81,20.19845329]
[1773159298613,3.31711243,87.85,87.81,20.19845329]
[1773159299213,13.55811243,87.86,87.81,20.19845329]
[1773159300215,3.31711243,87.85,87.81,20.19845329]
[1773159300414,3.31711243,87.85,87.812,30.46391088]
[1773159300714,3.31711243,87.84,87.798,20.21791088]
[1773159301007,3.31711243,87.84,87.8,20.2179112]
[1773159301717,3.3180508,87.84,87.8,20.2179112]
[1773159302112,3.3180508,87.83,87.8,20.2179112]
[1773159302313,3.3180508,87.84,87.8,20.2179112]
[1773159302608,3.3180508,87.85,87.8,20.2179112]
[1773159303004,3.3180508,87.85,87.804,20.26200517]
[1773159303406,13.5600508,87.85,87.804,20.26200517]
[1773159303606,3.3180508,87.84,87.804,20.26200517]
[1773159303804,3.3180508,87.85,87.804,20.26200517]
[1773159304409,3.3180508,87.83,87.789,20.27016605]
[1773159304607,3.3180508,87.8,87.775,20.27016605]
[1773159304804,3.3180508,87.82,87.775,20.27016605]
[1773159305005,3.3180508,87.82,87.77,3.3180508]
[1773159305006,3.3180508,87.82,87.789,20.2701661]
[1773159305217,3.3180508,87.83,87.789,20.2701661]
[1773159307207,3.3180508,87.83,87.79,20.26019493]
[1773159307413,3.3180508,87.82,87.79,20.26019493]
[1773159307709,3.3180508,87.83,87.79,20.26019493]
[1773159308114,3.3180508,87.83,87.796,0.0728614]
[1773159308315,3.3180508,87.83,87.796,20.31936545]
[1773159308516,10.243,87.839,87.796,20.31936545]
[1773159308814,3.3180508,87.83,87.796,20.31936545]
[1773159309405,3.3180508,87.83,87.796,20.24650405]
[1773159310511,14.08130075,87.875,87.734,20.511]
[1773159310512,3.3180508,87.85,87.801,20.24670602]
[1773159310718,3.3180508,87.86,87.801,20.24670602]
[1773159310913,3.3180508,87.86,87.805,20.24670618]
[1773159311118,3.3180508,87.87,87.816,20.24670618]
[1773159311309,3.3180508,87.87,87.821,20.24670618]
[1773159311509,3.3180508,87.88,87.821,20.24670618]
[1773159311715,10.239,87.873,87.824,20.24670618]
[1773159312116,10.238,87.881,87.827,20.31084369]
[1773159312819,8.88088554,87.9,87.83,10.244]
[1773159312820,10.239,87.877,87.83,10.244]
[1773159313018,8.54354091,87.876,87.831,20.31084355]
[1773159313215,8.54354091,87.875,87.831,20.31084355]
[1773159313414,10.239,87.872,87.831,20.31084355]
[1773159313621,8.96073619,87.895,87.78,8.88088554]
[1773159313622,8.54354091,87.871,87.815,20.31084355]
[1773159313820,8.54354091,87.87,87.815,20.31084355]
[1773159314015,8.54354091,87.869,87.844,0.07223375]
[1773159314217,8.54354091,87.868,87.844,0.07223375]
[1773159314523,8.54354091,87.867,87.834,20.34208092]
[1773159314718,8.88088554,87.9,87.834,20.34208092]
[1773159314719,10.239,87.874,87.834,20.34208092]
[1773159315022,8.88088554,87.9,87.834,20.34208092]
[1773159315023,8.54223302,87.873,87.834,20.34208092]
[1773159315317,8.54223302,87.872,87.834,20.34208092]
[1773159315522,8.54223302,87.871,87.845,0.07180588]
[1773159315723,8.54223302,87.87,87.845,0.07180588]
[1773159315924,8.54223302,87.869,87.845,0.07180588]
[1773159316120,8.54223302,87.868,87.834,20.34208092]
[1773159316324,8.54223302,87.867,87.834,20.34208092]
[1773159316623,8.54223302,87.866,87.834,20.34208092]
[1773159316825,8.54223302,87.865,87.834,20.34208092]
[1773159317027,8.54223302,87.864,87.834,20.34208092]
[1773159317222,8.54223302,87.863,87.834,20.34208092]
[1773159317424,8.54223302,87.862,87.834,20.34208092]
[1773159317619,8.54223302,87.861,87.841,0.07276303]
[1773159317819,8.54223302,87.86,87.841,0.07276303]
[1773159318021,8.54223302,87.859,87.841,0.07276303]
[1773159318223,10.239,87.876,87.841,0.07276303]
[1773159318523,8.53720533,87.875,87.841,0.07276303]
[1773159318722,8.53720533,87.874,87.834,20.34208092]
[1773159318922,8.53720533,87.873,87.834,20.34208092]
[1773159319128,8.53720533,87.872,87.834,20.34208092]
[1773159319328,8.53720533,87.871,87.834,20.34208092]
[1773159319525,8.53720533,87.87,87.834,20.34208092]
[1773159319728,8.53720533,87.869,87.834,20.34208092]
[1773159320026,8.53720533,87.868,87.834,20.34208092]
[1773159320228,8.88088554,87.9,87.834,20.34208092]
[1773159320229,8.53720533,87.867,87.834,20.34208092]
[1773159320422,8.53720533,87.866,87.834,20.34208092]
[1773159320628,8.53720533,87.865,87.834,20.34208092]
[1773159320924,8.53720533,87.864,87.834,20.34208092]
[1773159321126,8.53720533,87.863,87.834,20.34208092]
[1773159321333,8.53720533,87.862,87.834,20.34208092]
[1773159321530,8.53720533,87.861,87.834,20.34208092]
[1773159321829,8.53720533,87.86,87.834,20.34208092]
[1773159322130,10.239,87.869,87.834,20.34208092]
[1773159322321,8.52623993,87.868,87.834,20.34208092]
[1773159322520,8.52623993,87.867,87.834,20.34208092]
[1773159322720,8.88088554,87.86,87.803,20.46848687]
[1773159322921,8.52623993,87.859,87.803,20.46848687]
[1773159323121,8.52623993,87.858,87.803,20.46848687]
[1773159323328,8.48825854,87.886,87.823,20.46848611]
[1773159323531,8.52585967,87.885,87.823,20.46848611]
[1773159323832,8.88088554,87.89,87.839,30.70316408]
[1773159323833,8.52585967,87.884,87.839,30.70316408]
[1773159324031,8.52585967,87.883,87.839,20.46016408]
[1773159324230,8.52585967,87.882,87.839,20.46016408]
[1773159324431,8.52585967,87.881,87.839,20.46016408]
[1773159324733,10.239,87.875,87.839,20.46016408]
[1773159325030,8.52585967,87.874,87.839,20.46016408]
[1773159325231,8.52585967,87.873,87.839,20.46016408]
[1773159325432,8.52585967,87.872,87.839,20.46016408]
[1773159325627,8.52585967,87.871,87.839,20.46016408]
[1773159325828,8.52585967,87.87,87.839,20.46016408]
[1773159326023,8.52585967,87.869,87.839,20.46016408]
[1773159326231,8.52585967,87.868,87.839,20.46016408]
[1773159326427,8.48825854,87.906,87.855,20.45823411]
[1773159326629,8.88088554,87.94,87.855,20.45823411]
[1773159326936,10.235,87.911,87.867,20.45823342]
[1773159327434,10.235,87.912,87.867,20.45823342]
[1773159329132,10.234,87.92,87.867,20.45823342]
[1773159329328,8.48913477,87.939,87.867,20.45823342]
[1773159329528,8.88088554,87.94,87.867,20.45823342]
[1773159330039,10.233,87.923,87.878,20.33537026]
[1773159330434,8.48913477,87.955,87.895,0.07262763]
[1773159330633,8.48913477,87.955,87.895,20.40799789]
[1773159331042,8.48913477,87.955,87.895,20.33537026]
[1773159331229,10.231,87.943,87.895,20.33537026]
[1773159331630,3.31065024,87.94,87.895,20.33537026]
[1773159332437,3.31065024,87.94,87.897,20.28149411]
[1773159332637,3.31065024,87.94,87.909,0.07214555]
[1773159333937,3.31065024,87.92,87.882,20.27650148]
[1773159334233,3.31065024,87.89,87.851,20.27650148]
[1773159335532,10.235,87.908,87.851,20.27650148]
[1773159335737,0.07351386,87.879,87.851,20.27650148]
[1773159335932,0.07351386,87.879,87.833,20.30689214]
[1773159336735,10.238,87.884,87.833,20.30689214]
[1773159337141,0.07211555,87.865,87.833,20.30689214]
[1773159337934,0.07211555,87.865,87.817,30.58274608]
[1773159338135,0.07211555,87.865,87.818,20.33774608]
[1773159338340,8.87661487,87.88,87.818,20.33774608]
[1773159339338,10.239,87.876,87.82,10.245]
[1773159339538,10.239,87.876,87.821,20.33774588]
[1773159341344,10.239,87.876,87.794,5.0]
[1773159341345,10.239,87.876,87.825,20.34716207]
[1773159342242,0.07202643,87.859,87.825,20.34716207]
[1773159342439,0.07202643,87.859,87.826,10.244]
[1773159342642,0.07202643,87.859,87.827,20.34857491]
[1773159344039,0.07202643,87.859,87.78,8.87661487]
[1773159344238,0.07202643,87.859,87.793,20.35225605]
[1773159344742,8.87661487,87.88,87.793,20.35225605]
[1773159344943,8.87661487,87.88,87.827,20.35225582]
[1773159346344,8.87661487,87.9,87.827,20.35225582]
[1773159346538,8.87661487,87.92,87.827,20.35225582]
[1773159348048,8.87661487,87.92,87.863,20.28335814]
[1773159348645,8.87661487,87.92,87.867,20.28335814]
[1773159350546,8.87661487,87.92,87.869,20.3670073]
[1773159350948,8.87661487,87.94,87.869,20.3670073]
[1773159351250,10.233,87.923,87.872,20.36700695]
[1773159351845,10.233,87.923,87.875,20.36805246]
[1773159355550,10.233,87.923,87.877,20.3692327]
[1773159355953,10.232,87.932,87.877,20.3692327]
[1773159356352,8.87661487,87.94,87.879,20.39115216]
[1773159356557,8.87661487,87.94,87.84,8.87661487]
[1773159356558,8.87661487,87.98,87.881,20.39115216]
[1773159356850,8.87661487,88.0,87.92,20.39115177]
[1773159357045,8.87661487,87.98,87.881,20.39115177]
[1773159357249,8.87661487,87.96,87.881,20.39115177]
[1773159357651,3.310831,87.93,87.889,20.39115177]
[1773159358561,3.310831,87.94,87.891,20.41522652]
[1773159359058,3.310831,87.95,87.901,20.41522607]
[1773159360458,3.310831,87.95,87.906,20.42396327]
[1773159360654,3.310831,87.96,87.906,20.42396327]
[1773159360958,3.310831,87.98,87.921,20.4239628]
[1773159361556,3.310831,88.0,87.941,20.4239628]
[1773159361948,3.310831,87.99,87.941,20.4239628]
[1773159362150,3.310831,87.98,87.941,20.4239628]
[1773159363360,10.224,87.999,87.943,20.47461489]
[1773159364154,3.30659721,87.99,87.943,20.47461489]
[1773159364465,3.30659721,87.98,87.943,20.47461489]
[1773159365656,3.30659721,87.98,87.929,10.232]
[1773159365865,3.30659721,87.95,87.901,30.76808176]
[1773159366061,3.30659721,87.95,87.902,20.53208176]
[1773159366661,3.30659721,87.94,87.902,20.53208176]
[1773159367865,3.30659721,87.95,87.902,20.53208176]
[1773159368960,3.30659721,87.94,87.902,20.53208176]
[1773159369664,3.30659721,87.94,87.912,0.07252712]
[1773159370055,3.30659721,87.94,87.912,20.66142575]
[1773159370262,3.30659721,87.95,87.912,20.66142575]
[1773159372461,10.228,87.966,87.916,10.234]
[1773159372660,3.30659721,87.95,87.917,20.59041364]
[1773159373061,3.30659721,87.93,87.9,20.59041287]
[1773159373460,3.30659721,87.94,87.9,20.59041287]
[1773159374468,3.30659721,87.94,87.89,10.237]
[1773159374664,3.30659721,87.91,87.868,20.58763641]
[1773159374871,3.30659721,87.9,87.868,20.58763641]
[1773159375066,3.30659721,87.92,87.871,20.62349784]
[1773159375362,3.30659721,87.9,87.871,20.62349784]
[1773159375666,3.30659721,87.91,87.871,20.62349784]
[1773159376259,3.30659721,87.92,87.872,10.239]
[1773159376458,3.30659721,87.92,87.872,29.06115993]
[1773159376964,3.30659721,87.92,87.873,20.65000674]
[1773159377166,3.30659721,87.91,87.877,10.238]
[1773159377366,3.30659721,87.91,87.862,20.65000674]
[1773159377568,3.30659721,87.92,87.862,20.65000674]
[1773159377865,3.30659721,87.92,87.871,20.65000674]
[1773159378372,3.30659721,87.91,87.875,10.239]
[1773159378564,14.08130075,87.983,87.829,20.489]
[1773159378565,3.30659721,87.93,87.876,20.67067982]
[1773159378962,3.30659721,87.92,87.863,20.67067901]
[1773159379168,3.30659721,87.91,87.863,20.67067901]
[1773159379567,3.30659721,87.91,87.865,20.67067901]
[1773159380368,3.30659721,87.91,87.867,20.66053738]
[1773159382870,3.30659721,87.91,87.87,20.69538388]
[1773159383670,3.30659721,87.91,87.872,20.69538388]
[1773159384270,3.30659721,87.93,87.882,20.6938116]
[1773159384569,3.30659721,87.92,87.867,20.6938116]
[1773159385059,8.44067953,87.96,87.867,20.6938116]
[1773159385060,3.30659721,87.91,87.867,20.6938116]
[1773159385261,3.30659721,87.9,87.867,20.6938116]
[1773159385461,3.30659721,87.91,87.867,20.6938116]
[1773159385664,3.30659721,87.91,87.807,20.494]
[1773159385665,8.54109212,87.932,87.881,20.69381081]
[1773159385868,3.30659721,87.95,87.891,20.69347278]
[1773159386267,3.30659721,87.96,87.909,20.69347278]
[1773159387476,3.30659721,87.96,87.918,20.693472]
[1773159387665,8.54109212,87.967,87.918,20.693472]
[1773159387866,8.54109212,87.969,87.918,20.693472]
[1773159388069,10.227,87.976,87.927,20.67746251]
[1773159388368,8.54109212,87.975,87.927,20.67746251]
[1773159388672,8.54109212,87.974,87.928,30.91046251]
[1773159388869,8.54109212,87.973,87.928,30.91046251]
[1773159389070,10.228,87.968,87.928,20.67746251]
[1773159389273,10.228,87.968,87.92,10.233]
[1773159389274,3.30659721,87.96,87.92,10.233]
[1773159390268,8.54109212,87.967,87.925,20.67894032]
[1773159390473,8.54109212,87.979,87.931,20.67894032]
[1773159390777,3.30659721,87.98,87.867,34.1]
[1773159390778,8.3981368,88.011,87.941,20.6789396]
[1773159390975,3.30659721,88.0,87.951,16.40839354]
[1773159392670,3.30659721,88.0,87.95,3.30659721]
[1773159392671,3.30659721,88.0,87.953,16.39783642]
[1773159392976,10.222,88.016,87.953,16.39783642]
[1773159392977,3.30659721,88.01,87.953,16.39783642]
[1773159393178,10.223,88.009,87.956,10.229]
[1773159393376,10.223,88.009,87.957,16.39783574]
[1773159393980,8.85559399,88.03,87.959,16.41706959]
[1773159394182,8.85559399,88.04,87.959,16.41706959]
[1773159394775,8.85559399,88.04,87.97,16.41706959]
[1773159396072,10.22,88.036,87.974,16.39720669]
[1773159396276,8.3981368,88.055,87.997,16.36118448]
[1773159396878,10.218,88.051,87.997,16.36118448]
[1773159397079,8.39495479,88.073,87.997,16.36118448]
[1773159397982,8.85559399,88.06,87.997,16.36118448]
[1773159398377,19.07259399,88.06,88.0,16.36173533]
[1773159398681,8.39495479,88.073,88.0,16.36173533]
[1773159398878,19.07059399,88.08,88.02,16.3617347]
[1773159399083,8.85559399,88.08,88.02,16.3617347]
[1773159399281,8.85559399,88.08,88.028,0.07289743]
[1773159400483,8.85559399,88.06,87.988,16.37022339]
[1773159401086,8.85559399,88.04,87.988,16.37022339]
[1773159401382,8.85559399,88.04,87.951,16.40667147]
[1773159401582,8.85559399,88.04,87.976,16.40667147]
[1773159402177,10.22,88.039,87.984,16.37661084]
[1773159402380,0.07251557,88.017,87.984,16.37661084]
[1773159402780,8.85559399,88.04,87.986,16.37661084]
[1773159403279,19.07559399,88.04,87.988,16.34035249]
[1773159403584,8.85559399,88.04,87.988,16.34035249]
[1773159404188,8.85559399,88.04,87.95,8.85559399]
[1773159404189,8.85559399,88.04,87.951,16.34174712]
[1773159404588,10.22,88.033,87.976,16.34174712]
[1773159404787,10.22,88.033,87.987,0.07246569]
[1773159405088,8.85559399,88.02,87.987,0.07246569]
[1773159405791,8.85559399,88.02,87.971,16.34174656]
[1773159406383,8.85559399,88.04,87.971,16.34174656]
[1773159406883,8.85559399,88.04,87.94,8.85559399]
[1773159406884,10.22,88.039,87.988,16.33986471]
[1773159407185,8.85559399,88.04,87.988,16.33986471]
[1773159407490,8.85559399,88.06,88.008,16.33986471]
[1773159408188,8.85559399,88.06,88.025,0.07266897]
[1773159409385,10.216,88.068,88.025,0.07266897]
[1773159409790,10.217,88.06,88.025,0.07266897]
[1773159410091,453.70944901,88.074,88.025,0.07266897]
[1773159410294,453.70944901,88.074,88.025,16.37089337]
[1773159410895,10.217,88.061,88.025,0.07266897]
[1773159411581,10.216,88.07,88.025,16.37089292]
[1773159411783,453.70944901,88.074,88.025,16.37089292]
[1773159412596,10.216,88.072,88.025,16.37089292]
[1773159412789,20.421,88.122,88.025,16.37089292]
[1773159412985,8.85559399,88.09,88.025,16.37089292]
[1773159413491,8.85559399,88.09,88.025,16.29822395]
[1773159414486,10.215,88.083,88.027,16.36261511]
[1773159414885,10.215,88.083,88.049,0.07166715]
[1773159415495,10.214,88.091,88.049,0.07166715]
[1773159416096,10.214,88.091,88.043,16.3626146]
[1773159418000,8.85559399,88.1,88.043,16.3626146]
[1773159418199,8.85559399,88.1,88.024,16.35348269]
[1773159418404,10.213,88.094,88.024,16.35348269]
[1773159419005,10.214,88.084,88.043,16.35348221]
[1773159419201,8.85559399,88.1,88.027,16.35348221]
[1773159419402,8.85559399,88.1,88.042,16.35348221]
[1773159419700,10.214,88.091,88.042,16.35348221]
[1773159420101,8.85559399,88.1,88.042,16.35348221]
[1773159420302,10.215,88.084,88.042,16.35348221]
[1773159420803,8.85559399,88.12,88.042,16.35348221]
[1773159421105,8.85559399,88.14,88.072,16.34656588]
[1773159421703,10.209,88.131,88.085,16.34656588]
[1773159422205,19.06359399,88.14,88.085,16.34656588]
[1773159422407,8.85559399,88.19,88.085,16.34656588]
[1773159422604,8.85559399,88.19,88.101,16.34701948]
[1773159423209,10.203,88.184,88.118,16.34701903]
[1773159423410,8.85559399,88.21,88.118,16.34701903]
[1773159423606,8.818397,88.21,88.118,16.34701903]
[1773159423807,1.97447929,88.188,88.118,16.34701903]
[1773159424008,1.97447929,88.188,88.128,16.26414685]
[1773159424306,1.97447929,88.188,88.155,0.07174954]
[1773159424809,1.97447929,88.188,88.128,16.26414685]
[1773159425005,10.204,88.178,88.128,16.26414685]
[1773159425208,1.97447929,88.188,88.128,16.26414685]
[1773159426007,10.204,88.171,88.128,16.26414685]
[1773159426206,1.97447929,88.188,88.128,16.26414685]
[1773159426607,10.204,88.172,88.128,16.26414685]
[1773159426805,1.97447929,88.188,88.128,16.26414685]
[1773159427210,1.97447929,88.188,88.12,8.818397]
[1773159427211,1.97447929,88.188,88.149,16.26118821]
[1773159427410,8.818397,88.23,88.149,16.26118821]
[1773159427613,10.202,88.192,88.149,16.26118821]
[1773159427813,8.818397,88.21,88.149,16.26118821]
[1773159428211,158.599,88.251,88.118,15.25272981]
[1773159428212,8.818397,88.19,88.118,15.25272981]
[1773159428512,8.818397,88.17,88.071,15.25272981]
[1773159428808,10.209,88.129,88.079,15.25272951]
[1773159429011,8.818397,88.13,88.079,15.25272951]
[1773159429410,8.818397,88.13,88.031,15.25272951]
[1773159429810,8.818397,88.12,88.031,15.25272951]
[1773159430411,8.818397,88.12,88.02,8.818397]
[1773159430412,8.818397,88.12,88.061,15.20042361]
[1773159431516,8.818397,88.14,88.061,15.20042361]
[1773159431917,8.818397,88.14,88.063,15.21264769]
[1773159432114,8.818397,88.12,88.063,15.21264769]
[1773159432507,10.209,88.127,88.067,15.21264769]
[1773159432817,8.818397,88.14,88.067,15.21264769]
[1773159433022,8.818397,88.16,88.09,15.21264745]
[1773159433413,8.818397,88.18,88.108,15.21264745]
[1773159434517,10.206,88.159,88.108,15.21264745]
[1773159434708,8.818397,88.18,88.108,15.21264745]
[1773159434911,10.204,88.177,88.118,15.25496697]
[1773159435106,8.818397,88.18,88.118,15.25496697]
[1773159435818,1.97464734,88.171,88.118,15.25496697]
[1773159436318,1.97464734,88.171,88.13,10.209]
[1773159436709,1.97464734,88.171,88.118,15.25496697]
[1773159437114,1.97464734,88.171,88.121,15.26163552]
[1773159438217,10.203,88.188,88.123,15.25559982]
[1773159438411,8.818397,88.19,88.123,15.25559982]
[1773159438613,8.818397,88.21,88.123,15.25559982]
[1773159439416,10.201,88.198,88.138,15.2194399]
[1773159439917,8.818397,88.19,88.138,15.2194399]
[1773159440313,8.818397,88.23,88.138,15.2194399]
[1773159441310,8.818397,88.23,88.171,15.22171321]
[1773159441521,8.818397,88.25,88.171,15.22171321]
[1773159441717,8.818397,88.23,88.171,15.22171321]
[1773159442218,8.818397,88.25,88.174,15.20872469]
[1773159442422,8.818397,88.25,88.202,0.07156529]
[1773159442719,8.818397,88.22,88.152,15.20872469]
[1773159442916,8.818397,88.19,88.111,15.20872445]
[1773159443519,10.203,88.186,88.132,15.20872445]
[1773159443821,8.818397,88.19,88.132,15.20872445]
[1773159444320,10.204,88.178,88.132,15.20872445]
[1773159444522,8.818397,88.17,88.091,15.22558856]
[1773159444821,10.203,88.179,88.121,15.22558856]
[1773159445021,8.818397,88.19,88.121,15.22558856]
[1773159445219,10.203,88.18,88.121,25.43558856]
[1773159445423,8.818397,88.19,88.122,15.2255883]
[1773159445720,8.818397,88.19,88.102,15.2255883]
[1773159445921,8.818397,88.19,88.115,15.2329695]
[1773159446516,8.818397,88.17,88.115,15.2329695]
[1773159446724,8.818397,88.17,88.116,25.4439695]
[1773159446924,8.818397,88.17,88.117,15.23296925]
[1773159447614,8.818397,88.19,88.122,15.23296925]
[1773159448214,10.201,88.201,88.143,15.20278092]
[1773159449124,8.818397,88.21,88.143,15.20278092]
[1773159449125,10.202,88.193,88.143,15.20278092]
[1773159449822,8.818397,88.19,88.123,15.13599881]
[1773159450020,8.818397,88.17,88.123,15.13599881]
[1773159450421,10.206,88.162,88.105,15.13599881]
[1773159451117,10.206,88.153,88.105,15.13599881]
[1773159451319,8.818397,88.15,88.084,15.13599865]
[1773159451927,8.818397,88.15,88.086,15.09351489]
[1773159452420,10.207,88.147,88.09,10.214]
[1773159452621,8.818397,88.15,88.086,15.09351489]
[1773159454121,10.207,88.149,88.087,10.214]
[1773159454324,8.818397,88.15,88.088,15.0940627]
[1773159455219,10.21,88.124,88.067,15.09406258]
[1773159455621,8.818397,88.13,88.067,15.09406258]
[1773159456624,10.21,88.12,88.067,15.09406258]
[1773159457730,8.818397,88.13,88.069,15.10228542]
[1773159460623,8.818397,88.13,88.085,10.214]
[1773159461034,8.818397,88.13,88.069,15.10228542]
[1773159461226,8.50840605,88.132,88.083,15.09742123]
[1773159461433,8.50840605,88.131,88.083,15.09742123]
[1773159461634,8.50840605,88.137,88.083,15.09742123]
[1773159461836,8.50840605,88.136,88.083,15.09742123]
[1773159462037,8.50840605,88.135,88.083,15.09742123]
[1773159462232,0.00040605,88.147,88.083,15.09742123]
[1773159462536,14.02114842,88.224,88.091,15.09713444]
[1773159462733,8.818397,88.26,88.135,10.209]
[1773159462734,1.97433926,88.221,88.135,10.209]
[1773159463031,1.97433926,88.221,88.131,15.09713444]